[Event "Late-Titled-Tuesday-Blitz-September-19-2023"]
[Site "Chess.com"]
[Date "2023.09.19"]
[Round "11"]
[White "IgorBjelobrk"]
[Black "Dr_crypt"]
[Result "1-0"]
[WhiteElo "2665"]
[BlackElo "2436"]
[TimeControl "180+1"]
[EndTime "16:05:01 PDT"]
[Termination "IgorBjelobrk won on time"]

1. d4 {[%clk 0:03:00.9]} 1... Nf6 {[%clk 0:02:59.5]} 2. c4 {[%clk 0:03:01.1]}
2... e6 {[%clk 0:02:59.8]} 3. g3 {[%clk 0:03:01]} 3... d5 {[%clk 0:02:59.2]} 4.
Nf3 {[%clk 0:03:00.6]} 4... dxc4 {[%clk 0:02:58.5]} 5. Bg2 {[%clk 0:02:59.7]}
5... c5 {[%clk 0:02:59.3]} 6. O-O {[%clk 0:02:59.3]} 6... Nc6 {[%clk 0:02:59]}
7. dxc5 {[%clk 0:02:59]} 7... Qxd1 {[%clk 0:02:58.6]} 8. Rxd1 {[%clk 0:02:59.6]}
8... Bxc5 {[%clk 0:02:58.6]} 9. Nbd2 {[%clk 0:03:00.3]} 9... c3 {[%clk
0:02:58.7]} 10. bxc3 {[%clk 0:03:00.7]} 10... Ke7 {[%clk 0:02:54.8]} 11. Nb3
{[%clk 0:02:58.3]} 11... Bd6 {[%clk 0:02:54.6]} 12. c4 {[%clk 0:02:58.7]} 12...
Rd8 {[%clk 0:02:44.1]} 13. c5 {[%clk 0:02:51.2]} 13... Bc7 {[%clk 0:02:44.2]}
14. Bb2 {[%clk 0:02:49.2]} 14... Bd7 {[%clk 0:02:43]} 15. Nfd2 {[%clk
0:02:45.8]} 15... Be8 {[%clk 0:02:35.3]} 16. Nc4 {[%clk 0:02:45.4]} 16... Rxd1+
{[%clk 0:02:34.1]} 17. Rxd1 {[%clk 0:02:44.9]} 17... Rd8 {[%clk 0:02:34.8]} 18.
Nd6 {[%clk 0:02:40.6]} 18... b6 {[%clk 0:01:54.5]} 19. Rc1 {[%clk 0:02:31.4]}
19... Bxd6 {[%clk 0:01:50.7]} 20. cxd6+ {[%clk 0:02:31]} 20... Kxd6 {[%clk
0:01:48.9]} 21. Ba3+ {[%clk 0:02:25.6]} 21... Kc7 {[%clk 0:01:49.1]} 22. e3
{[%clk 0:02:15.1]} 22... Kb7 {[%clk 0:01:35.2]} 23. Nd4 {[%clk 0:01:51.6]} 23...
Nd5 {[%clk 0:01:33.7]} 24. Nb5 {[%clk 0:01:47.7]} 24... Ka6 {[%clk 0:00:21.1]}
25. Nd6 {[%clk 0:01:37.3]} 25... Ncb4 {[%clk 0:00:21.2]} 26. Bf1+ {[%clk
0:01:08.6]} 26... b5 {[%clk 0:00:19.5]} 27. Nxe8 {[%clk 0:01:02.3]} 27... Rxe8
{[%clk 0:00:20]} 28. Bxb4 {[%clk 0:01:02.9]} 28... Nxb4 {[%clk 0:00:19.9]} 29.
a4 {[%clk 0:01:03.5]} 29... Kb6 {[%clk 0:00:14.2]} 30. axb5 {[%clk 0:01:02.2]}
30... Re7 {[%clk 0:00:10]} 31. Ra1 {[%clk 0:00:55.3]} 31... Rc7 {[%clk
0:00:09.7]} 32. Ra4 {[%clk 0:00:55.4]} 32... Kc5 {[%clk 0:00:07.9]} 33. Kg2
{[%clk 0:00:53.9]} 33... Nd5 {[%clk 0:00:05.2]} 34. Kf3 {[%clk 0:00:47.3]} 1-0

[Event "Late-Titled-Tuesday-Blitz-September-19-2023"]
[Site "Chess.com"]
[Date "2023.09.19"]
[Round "11"]
[White "Mikhail_Golubev"]
[Black "rychessmaster1"]
[Result "1/2-1/2"]
[WhiteElo "2588"]
[BlackElo "2718"]
[TimeControl "180+1"]
[EndTime "16:05:02 PDT"]
[Termination "Game drawn by stalemate"]

1. e4 {[%clk 0:03:00.9]} 1... e5 {[%clk 0:02:59.6]} 2. Nf3 {[%clk 0:03:00.9]}
2... Nc6 {[%clk 0:02:59.4]} 3. Bc4 {[%clk 0:03:01.4]} 3... Bc5 {[%clk
0:02:59.2]} 4. c3 {[%clk 0:03:01]} 4... Nf6 {[%clk 0:02:59]} 5. d4 {[%clk
0:03:01.6]} 5... exd4 {[%clk 0:02:59.4]} 6. cxd4 {[%clk 0:03:02.5]} 6... Bb4+
{[%clk 0:02:59.7]} 7. Nbd2 {[%clk 0:03:03.2]} 7... d5 {[%clk 0:02:58.8]} 8. exd5
{[%clk 0:03:03.3]} 8... Qe7+ {[%clk 0:02:59.3]} 9. Qe2 {[%clk 0:02:47.6]} 9...
Qxe2+ {[%clk 0:02:59]} 10. Kxe2 {[%clk 0:02:47.4]} 10... Ne7 {[%clk 0:02:59.5]}
11. Bb5+ {[%clk 0:02:36.7]} 11... Bd7 {[%clk 0:02:49.4]} 12. Bxd7+ {[%clk
0:02:30.8]} 12... Nxd7 {[%clk 0:02:50.3]} 13. d6 {[%clk 0:02:28.7]} 13... Bxd6
{[%clk 0:02:49.4]} 14. Nc4 {[%clk 0:02:28.2]} 14... Nc8 {[%clk 0:02:38.8]} 15.
Nxd6+ {[%clk 0:02:26.4]} 15... Nxd6 {[%clk 0:02:39.7]} 16. Bf4 {[%clk
0:02:26.4]} 16... Nb6 {[%clk 0:02:34.8]} 17. Kd3 {[%clk 0:02:18.7]} 17... f6
{[%clk 0:02:33.7]} 18. Bxd6 {[%clk 0:02:14]} 18... cxd6 {[%clk 0:02:34.6]} 19.
Nd2 {[%clk 0:02:09.1]} 19... Kd7 {[%clk 0:02:33.4]} 20. Nc4 {[%clk 0:02:07.4]}
20... Nxc4 {[%clk 0:02:04.8]} 21. Kxc4 {[%clk 0:02:08.3]} 21... Rac8+ {[%clk
0:02:05.2]} 22. Kd3 {[%clk 0:02:08.5]} 22... Kc6 {[%clk 0:02:05.5]} 23. Rhe1
{[%clk 0:02:06.2]} 23... Kd7 {[%clk 0:01:57.4]} 24. Rac1 {[%clk 0:01:59.5]}
24... Rxc1 {[%clk 0:01:53.8]} 25. Rxc1 {[%clk 0:01:59]} 25... Re8 {[%clk
0:01:54.3]} 26. a4 {[%clk 0:01:53]} 26... b6 {[%clk 0:01:53.3]} 27. b4 {[%clk
0:01:51.2]} 27... d5 {[%clk 0:01:53.3]} 28. Ra1 {[%clk 0:01:29.5]} 28... Rc8
{[%clk 0:01:49.5]} 29. b5 {[%clk 0:01:23.8]} 29... a5 {[%clk 0:01:43.4]} 30.
bxa6 {[%clk 0:01:21.9]} 30... Ra8 {[%clk 0:01:44.1]} 31. Kc3 {[%clk 0:01:16.4]}
31... Rxa6 {[%clk 0:01:43.7]} 32. Kb4 {[%clk 0:01:16.9]} 32... Ra5 {[%clk
0:01:38]} 33. Ra2 {[%clk 0:01:15.5]} 33... Kd6 {[%clk 0:01:36.8]} 34. h3 {[%clk
0:01:07.6]} 34... h5 {[%clk 0:01:32.4]} 35. h4 {[%clk 0:01:06.2]} 35... Kc6
{[%clk 0:01:24.8]} 36. Rc2+ {[%clk 0:01:05.7]} 36... Kd7 {[%clk 0:01:25.3]} 37.
Rc3 {[%clk 0:01:04.2]} 37... Ra8 {[%clk 0:01:21.3]} 38. Rg3 {[%clk 0:01:02.6]}
38... Rg8 {[%clk 0:01:20.2]} 39. Kb5 {[%clk 0:01:02.1]} 39... Kc7 {[%clk
0:01:17.8]} 40. Rc3+ {[%clk 0:01:01.6]} 40... Kb7 {[%clk 0:01:13.1]} 41. Rc6
{[%clk 0:01:01.3]} 41... g5 {[%clk 0:01:13.1]} 42. Rxb6+ {[%clk 0:01:01.3]}
42... Ka7 {[%clk 0:01:13.6]} 43. hxg5 {[%clk 0:00:54.6]} 43... Rxg5 {[%clk
0:01:08.4]} 44. Rxf6 {[%clk 0:00:53.2]} 44... Rxg2 {[%clk 0:01:08.5]} 45. a5
{[%clk 0:00:46.2]} 45... Rg7 {[%clk 0:01:03.4]} 46. Rh6 {[%clk 0:00:39.2]} 46...
Rf7 {[%clk 0:01:03.3]} 47. Rxh5 {[%clk 0:00:38.3]} 47... Rxf2 {[%clk 0:01:04]}
48. Rh7+ {[%clk 0:00:37.7]} 48... Kb8 {[%clk 0:01:02.4]} 49. a6 {[%clk
0:00:31.6]} 49... Ra2 {[%clk 0:00:59.3]} 50. Kb6 {[%clk 0:00:30.4]} 50... Rb2+
{[%clk 0:00:59.5]} 51. Kc6 {[%clk 0:00:30.5]} 51... Ra2 {[%clk 0:00:59]} 52. a7+
{[%clk 0:00:30.3]} 52... Ka8 {[%clk 0:00:58.9]} 53. Kxd5 {[%clk 0:00:30.4]}
53... Ra5+ {[%clk 0:00:58.1]} 54. Kc4 {[%clk 0:00:21.5]} 54... Ra4+ {[%clk
0:00:57.3]} 55. Kc5 {[%clk 0:00:20.4]} 55... Rc4+ {[%clk 0:00:57]} 56. Kxc4
{[%clk 0:00:18.7]} 1/2-1/2

[Event "Late-Titled-Tuesday-Blitz-September-19-2023"]
[Site "Chess.com"]
[Date "2023.09.19"]
[Round "11"]
[White "Nf3c5"]
[Black "Schwindle"]
[Result "1-0"]
[WhiteElo "2545"]
[BlackElo "2413"]
[TimeControl "180+1"]
[EndTime "16:05:04 PDT"]
[Termination "Nf3c5 won by resignation"]

1. d4 {[%clk 0:02:54.8]} 1... Nf6 {[%clk 0:02:58.6]} 2. Nf3 {[%clk 0:02:53.9]}
2... e6 {[%clk 0:02:58.6]} 3. Bg5 {[%clk 0:02:53.4]} 3... d5 {[%clk 0:02:57.8]}
4. Nbd2 {[%clk 0:02:51.3]} 4... Be7 {[%clk 0:02:57.6]} 5. e3 {[%clk 0:02:50.6]}
5... O-O {[%clk 0:02:57.8]} 6. Bd3 {[%clk 0:02:50.4]} 6... Nbd7 {[%clk
0:02:57.9]} 7. Ne5 {[%clk 0:02:45.5]} 7... Nxe5 {[%clk 0:02:52.9]} 8. dxe5
{[%clk 0:02:45.7]} 8... Nd7 {[%clk 0:02:53.1]} 9. Bf4 {[%clk 0:02:45.7]} 9... c5
{[%clk 0:02:39.1]} 10. c3 {[%clk 0:02:43.7]} 10... b6 {[%clk 0:02:37]} 11. h4
{[%clk 0:02:36.1]} 11... f5 {[%clk 0:02:30]} 12. g4 {[%clk 0:02:32.7]} 12... c4
{[%clk 0:02:28.2]} 13. Bc2 {[%clk 0:02:31.5]} 13... Nc5 {[%clk 0:02:28.6]} 14.
Nf3 {[%clk 0:02:04.5]} 14... fxg4 {[%clk 0:01:42.6]} 15. Ng5 {[%clk 0:01:59.2]}
15... h5 {[%clk 0:01:38.2]} 16. f3 {[%clk 0:01:54.4]} 16... Bb7 {[%clk
0:01:24.2]} 17. Rg1 {[%clk 0:01:45.4]} 17... Bxg5 {[%clk 0:01:17.8]} 18. hxg5
{[%clk 0:01:37.5]} 18... d4 {[%clk 0:01:10.6]} 19. cxd4 {[%clk 0:00:54.9]} 19...
Bxf3 {[%clk 0:01:07.3]} 20. Qd2 {[%clk 0:00:54.6]} 20... Ne4 {[%clk 0:00:53.3]}
21. Qh2 {[%clk 0:00:48.8]} 21... g6 {[%clk 0:00:46]} 22. Rf1 {[%clk 0:00:41.3]}
22... Nxg5 {[%clk 0:00:40.3]} 23. Bxg6 {[%clk 0:00:36.9]} 23... Qe7 {[%clk
0:00:23]} 24. Qxh5 {[%clk 0:00:34]} 24... Qb4+ {[%clk 0:00:21.1]} 25. Kf2 {[%clk
0:00:33.7]} 25... Qd2+ {[%clk 0:00:21.2]} 26. Kg3 {[%clk 0:00:31.4]} 26... Qg2+
{[%clk 0:00:15.8]} 27. Kh4 {[%clk 0:00:31.8]} 27... Qh3+ {[%clk 0:00:13.5]} 28.
Kxg5 {[%clk 0:00:32.1]} 28... Qxh5+ {[%clk 0:00:14.4]} 29. Kxh5 {[%clk
0:00:29.9]} 29... Kg7 {[%clk 0:00:15.3]} 30. Bh6+ {[%clk 0:00:28.6]} 30... Kg8
{[%clk 0:00:15.6]} 31. Bxf8 {[%clk 0:00:28.6]} 31... Rxf8 {[%clk 0:00:16.5]} 32.
Kg5 {[%clk 0:00:28.9]} 32... Kg7 {[%clk 0:00:16.1]} 33. Rf2 {[%clk 0:00:25.3]}
33... Rh8 {[%clk 0:00:13.9]} 34. Raf1 {[%clk 0:00:23.1]} 34... b5 {[%clk
0:00:13.1]} 35. Rxf3 {[%clk 0:00:22.4]} 35... gxf3 {[%clk 0:00:14]} 36. Rxf3
{[%clk 0:00:23]} 36... Rh2 {[%clk 0:00:14.4]} 37. Rf7+ {[%clk 0:00:23.1]} 37...
Kg8 {[%clk 0:00:14.5]} 38. Rxa7 {[%clk 0:00:21.1]} 38... Rxb2 {[%clk 0:00:13.9]}
39. Kf6 {[%clk 0:00:21.4]} 1-0

[Event "Late-Titled-Tuesday-Blitz-September-19-2023"]
[Site "Chess.com"]
[Date "2023.09.19"]
[Round "11"]
[White "nitpicker"]
[Black "maurovargas01"]
[Result "1-0"]
[WhiteElo "2231"]
[BlackElo "1887"]
[TimeControl "180+1"]
[EndTime "16:05:05 PDT"]
[Termination "nitpicker won on time"]

1. d4 {[%clk 0:02:29]} 1... d5 {[%clk 0:02:35.6]} 2. c4 {[%clk 0:02:29]} 2... c6
{[%clk 0:02:34.5]} 3. Nf3 {[%clk 0:02:28.1]} 3... e6 {[%clk 0:02:35.4]} 4. Qb3
{[%clk 0:02:27.1]} 4... Nf6 {[%clk 0:02:29.3]} 5. Nc3 {[%clk 0:02:24.5]} 5...
Nbd7 {[%clk 0:02:26.8]} 6. Bg5 {[%clk 0:02:23.5]} 6... Bd6 {[%clk 0:02:25.1]} 7.
e3 {[%clk 0:02:19.5]} 7... O-O {[%clk 0:02:24.9]} 8. Rd1 {[%clk 0:02:16.2]} 8...
h6 {[%clk 0:02:23.7]} 9. Bh4 {[%clk 0:02:15.8]} 9... Qe8 {[%clk 0:02:18.6]} 10.
Be2 {[%clk 0:02:10.6]} 10... Ne4 {[%clk 0:02:08.3]} 11. Nxe4 {[%clk 0:01:58.4]}
11... dxe4 {[%clk 0:02:07.8]} 12. Nd2 {[%clk 0:01:58.9]} 12... f5 {[%clk
0:01:58.4]} 13. Bg3 {[%clk 0:01:57.7]} 13... e5 {[%clk 0:01:43.2]} 14. c5+
{[%clk 0:01:57.1]} 14... Kh8 {[%clk 0:01:32.1]} 15. cxd6 {[%clk 0:01:53]} 15...
f4 {[%clk 0:01:31.8]} 16. Nxe4 {[%clk 0:01:32.6]} 16... fxg3 {[%clk 0:01:28.2]}
17. Nxg3 {[%clk 0:01:29.2]} 17... exd4 {[%clk 0:01:06.1]} 18. Rxd4 {[%clk
0:01:28.2]} 18... Qe5 {[%clk 0:00:56.3]} 19. O-O {[%clk 0:01:19.4]} 19... Nf6
{[%clk 0:00:43.7]} 20. Rfd1 {[%clk 0:01:15]} 20... Be6 {[%clk 0:00:34]} 21. Qa3
{[%clk 0:00:37.6]} 21... Nd5 {[%clk 0:00:27.3]} 22. Bf1 {[%clk 0:00:18.5]} 22...
Rad8 {[%clk 0:00:26.8]} 23. Qxa7 {[%clk 0:00:15.8]} 23... Bc8 {[%clk 0:00:23.2]}
24. Qc5 {[%clk 0:00:14.7]} 24... Rf6 {[%clk 0:00:09.1]} 25. e4 {[%clk
0:00:14.5]} 25... Qxd6 {[%clk 0:00:02.2]} 26. Qxd6 {[%clk 0:00:13.7]} 26...
Rfxd6 {[%clk 0:00:01.8]} 27. exd5 {[%clk 0:00:14.4]} 27... cxd5 {[%clk
0:00:01.1]} 28. Ne4 {[%clk 0:00:13.7]} 1-0

[Event "Late-Titled-Tuesday-Blitz-September-19-2023"]
[Site "Chess.com"]
[Date "2023.09.19"]
[Round "11"]
[White "SlipperySpeedster"]
[Black "JackRodgers"]
[Result "1-0"]
[WhiteElo "2644"]
[BlackElo "2523"]
[TimeControl "180+1"]
[EndTime "16:05:06 PDT"]
[Termination "SlipperySpeedster won by checkmate"]

1. Nf3 {[%clk 0:02:56.9]} 1... c5 {[%clk 0:02:59.5]} 2. b3 {[%clk 0:02:53.3]}
2... Nf6 {[%clk 0:02:58.7]} 3. Bb2 {[%clk 0:02:53.9]} 3... g6 {[%clk 0:02:58.9]}
4. e3 {[%clk 0:02:54.4]} 4... Bg7 {[%clk 0:02:59.1]} 5. Be2 {[%clk 0:02:55]}
5... O-O {[%clk 0:02:58.8]} 6. O-O {[%clk 0:02:55.6]} 6... Nc6 {[%clk
0:02:55.9]} 7. c4 {[%clk 0:02:55.5]} 7... d5 {[%clk 0:02:53.5]} 8. cxd5 {[%clk
0:02:55.6]} 8... Nxd5 {[%clk 0:02:54.4]} 9. Bxg7 {[%clk 0:02:55.5]} 9... Kxg7
{[%clk 0:02:55.3]} 10. d4 {[%clk 0:02:56.3]} 10... cxd4 {[%clk 0:02:53.5]} 11.
Nxd4 {[%clk 0:02:57.2]} 11... Nxd4 {[%clk 0:02:53.1]} 12. Qxd4+ {[%clk
0:02:58.1]} 12... Nf6 {[%clk 0:02:53.8]} 13. Qe5 {[%clk 0:02:58.2]} 13... Be6
{[%clk 0:02:45.4]} 14. Bf3 {[%clk 0:02:55.1]} 14... Qb6 {[%clk 0:02:43.9]} 15.
Nc3 {[%clk 0:02:52.8]} 15... Rac8 {[%clk 0:02:37.8]} 16. Na4 {[%clk 0:02:51.4]}
16... Qb4 {[%clk 0:02:36]} 17. a3 {[%clk 0:02:32]} 17... Qxb3 {[%clk 0:02:26.1]}
18. Nc5 {[%clk 0:02:30.4]} 18... Qb6 {[%clk 0:01:59.9]} 19. Nxe6+ {[%clk
0:02:27.3]} 19... Qxe6 {[%clk 0:01:56.2]} 20. Qxe6 {[%clk 0:02:22.4]} 20... fxe6
{[%clk 0:01:57.1]} 21. Bxb7 {[%clk 0:02:23]} 21... Rc7 {[%clk 0:01:47]} 22. Bf3
{[%clk 0:02:20]} 22... Rb8 {[%clk 0:01:44.3]} 23. g3 {[%clk 0:02:16.9]} 23...
Rb3 {[%clk 0:01:39.3]} 24. a4 {[%clk 0:02:15.1]} 24... a5 {[%clk 0:01:37.6]} 25.
Rfb1 {[%clk 0:02:13.7]} 25... Rxb1+ {[%clk 0:01:33.5]} 26. Rxb1 {[%clk
0:02:14.6]} 26... Rc4 {[%clk 0:01:34]} 27. Bd1 {[%clk 0:02:14.1]} 27... Nd5
{[%clk 0:01:30.1]} 28. Kg2 {[%clk 0:02:12.1]} 28... Rb4 {[%clk 0:01:23.2]} 29.
Rc1 {[%clk 0:02:10.6]} 29... Nb6 {[%clk 0:01:18.8]} 30. Rc5 {[%clk 0:02:06.9]}
30... Nxa4 {[%clk 0:01:18.5]} 31. Rxa5 {[%clk 0:02:06.7]} 31... Nc3 {[%clk
0:01:18]} 32. Bf3 {[%clk 0:02:06.3]} 32... Rb5 {[%clk 0:01:14.9]} 33. Ra7 {[%clk
0:02:03.6]} 33... Kf6 {[%clk 0:01:13.8]} 34. h4 {[%clk 0:02:00.7]} 34... Nd5
{[%clk 0:01:08.4]} 35. g4 {[%clk 0:01:59.7]} 35... h6 {[%clk 0:01:06.2]} 36. Ra8
{[%clk 0:01:56.2]} 36... Rb2 {[%clk 0:01:05.4]} 37. Kg3 {[%clk 0:01:55.2]} 37...
Rb4 {[%clk 0:00:57.2]} 38. Ra6 {[%clk 0:01:53.9]} 38... Kf7 {[%clk 0:00:54]} 39.
h5 {[%clk 0:01:49.5]} 39... g5 {[%clk 0:00:48.2]} 40. Bxd5 {[%clk 0:01:47.7]}
40... exd5 {[%clk 0:00:48.9]} 41. Rxh6 {[%clk 0:01:48.2]} 41... d4 {[%clk
0:00:47.4]} 42. Rh7+ {[%clk 0:01:38.6]} 42... Kf6 {[%clk 0:00:44.8]} 43. Rh6+
{[%clk 0:01:36]} 43... Kf7 {[%clk 0:00:44.9]} 44. exd4 {[%clk 0:01:34.1]} 44...
Rxd4 {[%clk 0:00:45.8]} 45. Rb6 {[%clk 0:01:32.1]} 45... Rd3+ {[%clk 0:00:43.3]}
46. f3 {[%clk 0:01:32.1]} 46... Rd1 {[%clk 0:00:38.6]} 47. Rb5 {[%clk
0:01:31.6]} 47... Rg1+ {[%clk 0:00:25.3]} 48. Kf2 {[%clk 0:01:30.9]} 48... Rh1
{[%clk 0:00:25.5]} 49. Rxg5 {[%clk 0:01:30]} 49... e6 {[%clk 0:00:25.1]} 50. Rb5
{[%clk 0:01:24.1]} 50... Kf6 {[%clk 0:00:24.8]} 51. Kg3 {[%clk 0:01:23.4]} 51...
Rg1+ {[%clk 0:00:24.6]} 52. Kf4 {[%clk 0:01:22.9]} 52... Ra1 {[%clk 0:00:20]}
53. g5+ {[%clk 0:01:23]} 53... Kg7 {[%clk 0:00:19.9]} 54. Rb7+ {[%clk
0:01:23.2]} 54... Kg8 {[%clk 0:00:20.5]} 55. Ke5 {[%clk 0:01:23.5]} 55... Ra5+
{[%clk 0:00:19.8]} 56. Kf6 {[%clk 0:01:23.8]} 56... Kh8 {[%clk 0:00:12.4]} 57.
Rb8+ {[%clk 0:01:19.9]} 57... Kh7 {[%clk 0:00:12.3]} 58. g6+ {[%clk 0:01:20.8]}
58... Kh6 {[%clk 0:00:12.7]} 59. Rh8# {[%clk 0:01:21.7]} 1-0

[Event "Late-Titled-Tuesday-Blitz-September-19-2023"]
[Site "Chess.com"]
[Date "2023.09.19"]
[Round "11"]
[White "KamlaPasand"]
[Black "MBA_CHESS_2021"]
[Result "1-0"]
[WhiteElo "2453"]
[BlackElo "2197"]
[TimeControl "180+1"]
[EndTime "16:05:06 PDT"]
[Termination "KamlaPasand won by checkmate"]

1. e4 {[%clk 0:02:55]} 1... g6 {[%clk 0:02:59.3]} 2. d4 {[%clk 0:02:54.6]} 2...
Bg7 {[%clk 0:03:00]} 3. Nf3 {[%clk 0:02:54.7]} 3... d6 {[%clk 0:02:58.9]} 4. Nc3
{[%clk 0:02:54.5]} 4... Nd7 {[%clk 0:02:59.2]} 5. Be2 {[%clk 0:02:51.9]} 5... e5
{[%clk 0:02:59]} 6. dxe5 {[%clk 0:02:50.8]} 6... dxe5 {[%clk 0:02:55.6]} 7. O-O
{[%clk 0:02:50.5]} 7... c6 {[%clk 0:02:54.6]} 8. b3 {[%clk 0:02:47.8]} 8... Qc7
{[%clk 0:02:54.2]} 9. Ba3 {[%clk 0:02:48]} 9... Qa5 {[%clk 0:02:13.9]} 10. Nb1
{[%clk 0:02:42.8]} 10... c5 {[%clk 0:02:08]} 11. c4 {[%clk 0:02:35.7]} 11... Ne7
{[%clk 0:02:02.9]} 12. Bb2 {[%clk 0:02:29.5]} 12... O-O {[%clk 0:02:00.5]} 13.
Nc3 {[%clk 0:02:29.9]} 13... Nc6 {[%clk 0:01:57.7]} 14. Nd5 {[%clk 0:02:29.9]}
14... Nd4 {[%clk 0:01:54.3]} 15. Bc3 {[%clk 0:02:25.6]} 15... Qd8 {[%clk
0:01:52.8]} 16. a3 {[%clk 0:02:18.8]} 16... b6 {[%clk 0:01:51.7]} 17. b4 {[%clk
0:02:18.4]} 17... Bb7 {[%clk 0:01:50.7]} 18. Nd2 {[%clk 0:02:11.8]} 18... Nf6
{[%clk 0:01:45.5]} 19. Kh1 {[%clk 0:02:07.1]} 19... Nxd5 {[%clk 0:01:38.5]} 20.
exd5 {[%clk 0:02:07]} 20... Rc8 {[%clk 0:01:32.3]} 21. Rc1 {[%clk 0:02:02.7]}
21... Qe7 {[%clk 0:01:28.4]} 22. Bd3 {[%clk 0:01:57]} 22... f5 {[%clk
0:01:27.7]} 23. Bb1 {[%clk 0:01:52.1]} 23... e4 {[%clk 0:01:20.6]} 24. Nb3
{[%clk 0:01:48.2]} 24... Nxb3 {[%clk 0:01:05.6]} 25. Qxb3 {[%clk 0:01:49.1]}
25... Bxc3 {[%clk 0:01:03]} 26. Rxc3 {[%clk 0:01:50]} 26... cxb4 {[%clk
0:00:57.4]} 27. axb4 {[%clk 0:01:49.5]} 27... Qf6 {[%clk 0:00:53.5]} 28. c5
{[%clk 0:01:46.5]} 28... Qe5 {[%clk 0:00:43.1]} 29. Rd1 {[%clk 0:01:32.7]} 29...
Kg7 {[%clk 0:00:42]} 30. c6 {[%clk 0:01:16]} 30... Ba6 {[%clk 0:00:41.3]} 31. d6
{[%clk 0:01:15.9]} 31... Bb5 {[%clk 0:00:37.9]} 32. d7 {[%clk 0:01:12.9]} 32...
Ra8 {[%clk 0:00:18.2]} 33. c7 {[%clk 0:01:12.2]} 33... Bxd7 {[%clk 0:00:15.3]}
34. Rxd7+ {[%clk 0:01:11.5]} 34... Kh8 {[%clk 0:00:15.2]} 35. Rh3 {[%clk
0:01:06.7]} 35... h5 {[%clk 0:00:13.9]} 36. Qc3 {[%clk 0:01:06.9]} 36... Qxc3
{[%clk 0:00:11.6]} 37. Rxc3 {[%clk 0:01:07.8]} 37... Rac8 {[%clk 0:00:11.7]} 38.
g3 {[%clk 0:01:06.9]} 38... Kg8 {[%clk 0:00:10.1]} 39. Ba2+ {[%clk 0:01:07]}
39... Kh8 {[%clk 0:00:10.1]} 40. Be6 {[%clk 0:01:06.7]} 40... Rf6 {[%clk
0:00:10.1]} 41. Rd8+ {[%clk 0:01:06.6]} 41... Kg7 {[%clk 0:00:09.8]} 42. Rxc8
{[%clk 0:01:06.3]} 42... Rxe6 {[%clk 0:00:09.8]} 43. Rg8+ {[%clk 0:01:06.5]}
43... Kxg8 {[%clk 0:00:09.6]} 44. c8=Q+ {[%clk 0:01:07.2]} 44... Kf7 {[%clk
0:00:10.2]} 45. Rc7+ {[%clk 0:01:06.2]} 45... Re7 {[%clk 0:00:10.2]} 46. Rxe7+
{[%clk 0:01:05.8]} 46... Kxe7 {[%clk 0:00:10.9]} 47. Qc7+ {[%clk 0:01:06.7]}
47... Kf6 {[%clk 0:00:10.8]} 48. Qxa7 {[%clk 0:01:07.6]} 48... Kg5 {[%clk
0:00:10.3]} 49. Qxb6 {[%clk 0:01:08.5]} 49... h4 {[%clk 0:00:10.6]} 50. gxh4+
{[%clk 0:01:08.1]} 50... Kxh4 {[%clk 0:00:10.1]} 51. Qxg6 {[%clk 0:01:07.9]}
51... f4 {[%clk 0:00:10.6]} 52. Qf5 {[%clk 0:01:05.6]} 52... e3 {[%clk
0:00:10.2]} 53. Qxf4+ {[%clk 0:01:05.9]} 53... Kh3 {[%clk 0:00:09.9]} 54. Qg3#
{[%clk 0:01:05.5]} 1-0

[Event "Late-Titled-Tuesday-Blitz-September-19-2023"]
[Site "Chess.com"]
[Date "2023.09.19"]
[Round "11"]
[White "Tomytoteph"]
[Black "slorovel"]
[Result "0-1"]
[WhiteElo "2568"]
[BlackElo "2524"]
[TimeControl "180+1"]
[EndTime "16:05:11 PDT"]
[Termination "slorovel won by checkmate"]

1. e3 {[%clk 0:03:00.4]} 1... e5 {[%clk 0:02:59.4]} 2. d4 {[%clk 0:03:00.5]}
2... exd4 {[%clk 0:02:59.7]} 3. exd4 {[%clk 0:03:01.4]} 3... Nf6 {[%clk
0:02:59.9]} 4. c3 {[%clk 0:03:02.3]} 4... d5 {[%clk 0:02:59.6]} 5. Nf3 {[%clk
0:03:03.2]} 5... Bd6 {[%clk 0:02:59.5]} 6. Be3 {[%clk 0:03:03.1]} 6... O-O
{[%clk 0:03:00.4]} 7. Nbd2 {[%clk 0:03:03.2]} 7... Bg4 {[%clk 0:02:59.4]} 8. Qc2
{[%clk 0:03:03.3]} 8... Nbd7 {[%clk 0:02:58.5]} 9. Bd3 {[%clk 0:03:03.4]} 9...
h6 {[%clk 0:02:58.1]} 10. O-O-O {[%clk 0:03:03]} 10... c5 {[%clk 0:02:51.8]} 11.
h3 {[%clk 0:03:03.5]} 11... Bxf3 {[%clk 0:02:51.2]} 12. Nxf3 {[%clk 0:03:03.1]}
12... c4 {[%clk 0:02:51.9]} 13. Be2 {[%clk 0:03:01.3]} 13... Qa5 {[%clk
0:02:51]} 14. Kb1 {[%clk 0:03:01.1]} 14... b5 {[%clk 0:02:50.8]} 15. a3 {[%clk
0:03:00.6]} 15... Qc7 {[%clk 0:02:48.2]} 16. g4 {[%clk 0:03:00.7]} 16... a5
{[%clk 0:02:48.5]} 17. Rhg1 {[%clk 0:02:57.9]} 17... b4 {[%clk 0:02:48.1]} 18.
h4 {[%clk 0:02:46.5]} 18... bxa3 {[%clk 0:02:45]} 19. g5 {[%clk 0:02:46.9]}
19... Rab8 {[%clk 0:02:43.6]} 20. Bc1 {[%clk 0:02:46.4]} 20... axb2 {[%clk
0:02:42.7]} 21. Be3 {[%clk 0:02:37.1]} 21... Ne4 {[%clk 0:02:37.4]} 22. gxh6
{[%clk 0:02:34.8]} 22... Rb3 {[%clk 0:02:29.3]} 23. Rxg7+ {[%clk 0:02:26.4]}
23... Kh8 {[%clk 0:02:28.6]} 24. Ng5 {[%clk 0:02:27.3]} 24... Ndf6 {[%clk
0:02:14.8]} 25. Bd2 {[%clk 0:02:04.2]} 25... Qd7 {[%clk 0:01:53.4]} 26. Bxc4
{[%clk 0:00:47.5]} 26... dxc4 {[%clk 0:01:43.5]} 27. Qxe4 {[%clk 0:00:47.1]}
27... Rfb8 {[%clk 0:00:47.4]} 28. Rg1 {[%clk 0:00:33.6]} 28... Nxe4 {[%clk
0:00:35.7]} 29. Rh7+ {[%clk 0:00:12.4]} 29... Kg8 {[%clk 0:00:35.6]} 30. Rg7+
{[%clk 0:00:12.8]} 30... Kf8 {[%clk 0:00:35.1]} 31. Nxe4 {[%clk 0:00:12.1]}
31... Qf5 {[%clk 0:00:27.8]} 32. Re1 {[%clk 0:00:09.6]} 32... Ra3 {[%clk
0:00:26.7]} 33. f3 {[%clk 0:00:04.1]} 33... Ra1+ {[%clk 0:00:25.3]} 34. Kc2
{[%clk 0:00:04.7]} 34... Rxe1 {[%clk 0:00:25.3]} 35. Bxe1 {[%clk 0:00:05.2]}
35... b1=Q+ {[%clk 0:00:25.5]} 36. Kd2 {[%clk 0:00:02]} 36... Rb2+ {[%clk
0:00:25.5]} 37. Ke3 {[%clk 0:00:02.3]} 37... Qf4# {[%clk 0:00:25.8]} 0-1